Cogmind - Beta 13 @@@ ROGUE MODE // 2024.04.05 @ 19:56:43 Player: graour Result: Self-destructed Performance ------------- Evolutions (2) 1000 Regions Visited (3) 600 Robots Destroyed (41) 205 Value Destroyed (796) 796 Prototype IDs (3) 60 Alien Tech Used (0) 0 Bonus (17) 17 TOTAL SCORE: 2678 Bonus ------- High Alert Combat Kills 17 Cogmind --------- Core Integrity 491/550 Matter 7/300 Energy 99/100 System Corruption 0% Temperature Cool (0) Movement Core (50) Location -8/Materials Parts ------- > --- POWER (2) -------- (None) > --- PROPULSION (3) --- (None) > --- UTILITY (3) ------ Visual Processing Unit > --- WEAPON (3) ------- (None) > --- INVENTORY (5) ---- Light Ion Engine Armored Treads Propulsion Shielding Hardlight Generator Improved Datajack Peak State ------------ > --- POWER ------------ Light Ion Engine > --- PROPULSION ------- Aluminum Leg Aluminum Leg > --- UTILITY ---------- Terrain Scanner Terrain Scan Processor > --- WEAPON ----------- Light Cannon Rocket Launcher > --- INVENTORY -------- Light Ion Engine Sensor Array Medium Laser Assault Rifle Light Assault Rifle [Rating: 9] Favorites ----------- Power Light Ion Engine Engine Light Ion Engine Propulsion Aluminum Leg Leg Aluminum Leg Wheel Wheel Utility Terrain Scanner Device Terrain Scanner Storage Small Storage Unit Processor Terrain Scan Processor Weapon Light Cannon Energy Gun Medium Laser Ballistic Gun Assault Rifle Ballistic Cannon Light Cannon Launcher Rocket Launcher Build | -11 -10 -9 -8 ------- Run | Yrd Mat Mat Mat Slots Evolved 4 | . . 2 2 Power 1 | . . 1 . Propulsion 1 | . . . 1 Utility 1 | . . 1 . Weapon 1 | . . . 1 Parts Attached 24 | 10 12 2 . Power 3 | 1 2 . . Engine 3 | 1 2 . . Core . | . . . . Reactor . | . . . . Propulsion 7 | 4 3 . . Treads . | . . . . Leg 5 | 2 3 . . Wheel 2 | 2 . . . Hover . | . . . . Flight . | . . . . Utility 6 | 2 3 1 . Device 3 | 1 2 . . Storage 1 | 1 . . . Processor 2 | . 1 1 . Hackware . | . . . . Protection . | . . . . Artifact . | . . . . Weapon 8 | 3 4 1 . Energy Gun 1 | 1 . . . Energy Cannon . | . . . . Ballistic Gun 3 | 2 1 . . Ballistic Cannon 1 | . 1 . . Launcher 3 | . 2 1 . Special Weapon . | . . . . Impact Weapon . | . . . . Slashing Weapon . | . . . . Piercing Weapon . | . . . . Special Melee Weapon . | . . . . Unidentified Prototypes . | . . . . Parts Lost 9 | . 1 8 . Power 1 | . . 1 . Propulsion 2 | . . 2 . Utility 2 | . . 2 . Weapon 4 | . 1 3 . Highest Loss Streak 4 | . 1 4 . To Critical Strikes . | . . . . Average Slot Usage (%) 89 | . 100 58 9 Engine 11 | . 14 2 . Leg 24 | . 28 15 . Device 19 | . 20 16 . Processor 6 | . 6 4 9 Energy Gun 5 | . 6 . . Ballistic Gun 1 | . 1 . . Ballistic Cannon 10 | . 10 9 . Launcher 8 | . 8 9 . Naked Turns . | . . . . Heaviest Build 14 | 13 14 12 . Greatest Support 26 | 26 20 20 3 Greatest Overweight (x) 2 | . . 2 . Average Overweight (x) . | . . . . Largest Inventory Capacity 8 | 8 8 5 5 Average Capacity 5 | 6 5 5 5 Most Carried 5 | 5 5 4 5 Average Carried 3 | 1 4 3 3 Final Capacity 8 | 8 5 5 5 Final Carried 5 | 3 4 3 5 Class Distribution -------------------- 97% | Mutant Dominant Class ---------------- Mutant | -10/Materials Mutant | -9/Materials Mutant | -8/Materials Resources | -11 -10 -9 -8 ----------- Run | Yrd Mat Mat Mat Matter Collected 735 | 310 351 74 . Remotely 184 | 89 95 . . Salvage Created 915 | 96 424 395 . Parts 74 | 4 35 35 . Haulers Intercepted 4 | . 1 3 . Recyclers Shooed 5 | . 4 1 . Parts Field Recycled . | . . . . Retrieved Matter . | . . . . Parts Self-Destructed . | . . . . Prevented . | . . . . Kills | -11 -10 -9 -8 ------- Run | Yrd Mat Mat Mat Combat Hostiles Destroyed 17 | . 7 10 . Guns 5 | . 5 . . Cannons 3 | . . 3 . AOE 9 | . 2 7 . Classes Destroyed 9 | 1 7 1 . Worker 4 | . 1 3 . Builder 5 | . 4 1 . Hauler 4 | . 1 3 . Recycler 3 | 1 2 . . Operator 2 | . 1 1 . Watcher 6 | . 3 3 . Swarmer 6 | . 3 3 . Grunt 8 | . 4 4 . Sentry 3 | . . 3 . Best Kill Streak 9 | 1 6 9 . Combat Bots Only 5 | . 3 5 . Max Kills in Single Turn 4 | 1 4 2 . Gunslinging . | . . . . Exploded 2 | . 1 2 . Melee . | . . . . Uniques/NPCs Destroyed . | . . . . Combat | -11 -10 -9 -8 -------- Run | Yrd Mat Mat Mat Hostile Shots Fired 169 | . 38 122 9 Missed 67 | . 13 49 5 Damage Taken 1218 | 4 349 806 59 Core 516 | . 59 398 59 Absorbed by Shields . | . . . . Core Remaining (%) 58 | 100 76 . . Volleys Fired 80 | 10 40 30 . Largest 2 | 1 2 2 . Hottest 85 | 20 85 68 . Shots Fired 134 | 10 74 50 . Gun 58 | 10 48 . . Cannon 37 | . 10 27 . Launcher 39 | . 16 23 . Special . | . . . . Kinetic 65 | 10 28 27 . Thermal 30 | . 30 . . Explosive 39 | . 16 23 . Electromagnetic . | . . . . Robot Hit Streak 5 | 3 5 4 . Robot Miss Streak 5 | 5 5 4 . Penetration Max . | . . . . Secondary Targets 2 | . 2 . . Max Gunslinging Chain 1 | . 1 . . Shots Hit Robots 61 | 4 34 23 . Core Hits 63 | 3 27 33 . Critical Kills . | . . . . Critical Parts Destroyed . | . . . . Critical Strikes 4 | . 2 2 . Burn 2 | . 2 . . Blast 2 | . . 2 . Melee Attacks . | . . . . Impact . | . . . . Slashing . | . . . . Piercing . | . . . . Sneak Attacks . | . . . . Combat Hostiles . | . . . . Follow-up Attacks . | . . . . Damage Inflicted 2901 | 41 1207 1653 . Guns 360 | 32 328 . . Cannons 319 | . 70 249 . Explosions 2213 | . 809 1404 . Melee . | . . . . Ramming 9 | 9 . . . Kinetic 442 | 32 161 249 . Thermal 237 | . 237 . . Explosive 2213 | . 809 1404 . Electromagnetic . | . . . . Impact . | . . . . Slashing . | . . . . Piercing . | . . . . Highest Corruption . | . . . . Average Corruption . | . . . . Corruption Purged . | . . . . Corruption Blocked . | . . . . Overload Shots . | . . . . Overflow Damage 114 | . 53 61 . Projectiles 1 | . . 1 . Explosions 113 | . 53 60 . Melee . | . . . . Knockbacks 2 | . . 2 . Impact . | . . . . Kinetic 2 | . . 2 . Secondary . | . . . . Self-Inflicted Damage 128 | 4 62 62 . Shots 4 | . 2 2 . Rammed 1 | 1 . . . Targets Rammed 1 | 1 . . . Kicked . | . . . . Crushed . | . . . . Highest Temperature 210 | . 210 46 . Average Temperature 45 | . 49 22 . Received Heat Transfer 300 | . 120 144 36 Siege Activations . | . . . . Robots Corrupted . | . . . . Combat Hostiles . | . . . . Parts Fried . | . . . . Impact Corruptions . | . . . . Robots Melted . | . . . . Combat Hostiles . | . . . . Parts Melted 4 | . 4 . . Heat Transferred 851 | . 851 . . Parts Sabotaged . | . . . . Parts Stolen . | . . . . Parts Stripped . | . . . . Power Chain Reactions . | . . . . Alert | -11 -10 -9 -8 ------- Run | Yrd Mat Mat Mat Peak Influence 574 | 5 257 574 161 Initial 157 | . 3 13 157 Average 94 | 3 49 279 159 Maximum Alert Level 2 | . 1 2 . Low Security (%) 79 | 100 90 28 100 Level 1 14 | . 9 39 . Level 2 6 | . . 31 . Level 3 . | . . . . Level 4 . | . . . . Level 5 . | . . . . High Security . | . . . . Max Security . | . . . . Squads Dispatched 4 | . 2 1 1 Investigation 1 | . 1 . . Extermination . | . . . . Reinforcement 3 | . 1 1 1 Assault . | . . . . Garrison . | . . . . Intercept . | . . . . Searches Triggered . | . . . . Construction Impeded 1 | . . 1 . Haulers Reinforced . | . . . . Active Scanning Responses . | . . . . Cargo Convoy Interrupts . | . . . . Stealth | -11 -10 -9 -8 --------- Run | Yrd Mat Mat Mat Distress Signals 1 | . . 1 . Communications Jammed . | . . . . Distress Signals . | . . . . Times Spotted 33 | . 11 19 3 Peak Tracking Total 6 | . 3 6 4 Tactical Retreats 1 | . . 1 . Traps | -11 -10 -9 -8 ------- Run | Yrd Mat Mat Mat Traps Triggered 1 | . 1 . . Indirectly . | . . . . Trap Hack Attempts . | . . . . Triggered . | . . . . Disarmed . | . . . . Reprogrammed . | . . . . Reused . | . . . . Traps Extracted . | . . . . Installed . | . . . . Triggered . | . . . . Machines | -11 -10 -9 -8 ---------- Run | Yrd Mat Mat Mat Machines Disabled 12 | . 3 9 . Max in Single Turn 2 | . 1 2 . Machines Repaired . | . . . . Machines Dismantled . | . . . . Machines Sabotaged . | . . . . Overloaded Fab Kills . | . . . . Hacking | -11 -10 -9 -8 --------- Run | Yrd Mat Mat Mat Machines Accessed 12 | . 6 5 1 Terminals 11 | . 6 4 1 Fabricators . | . . . . Repair Stations . | . . . . Recycling Units . | . . . . Scanalyzers 1 | . . 1 . Garrison Access . | . . . . Total Hacks 25 | . 13 10 2 Successful 14 | . 7 5 2 Failed 11 | . 6 5 . Catastrophic . | . . . . Database Lockouts . | . . . . Manual 3 | . 2 1 . Terminals 23 | . 13 8 2 Fabricators . | . . . . Repair Stations . | . . . . Recycling Units . | . . . . Scanalyzers 2 | . . 2 . Garrison Access . | . . . . Terminal Hacks 12 | . 7 3 2 Record 6 | . 4 1 1 Prototype ID Bank 2 | . 1 1 . Emergency Access Points 1 | . . . 1 Unreport Threat 1 | . 1 . . Locate Traps 2 | . 1 1 . Fabricator Hacks . | . . . . Repair Station Hacks . | . . . . Recycling Unit Hacks . | . . . . Scanalyzer 2 | . . 2 . Insert Component 1 | . . 1 . Analyze 1 | . . 1 . Garrison Access Hacks . | . . . . Unauthorized Hacks . | . . . . Terminals . | . . . . Fabricators . | . . . . Repair Stations . | . . . . Recycling Units . | . . . . Scanalyzers . | . . . . Garrison Access . | . . . . Data Cores Recovered 2 | . 1 1 . Used . | . . . . Hacking Detections 8 | . 6 2 . Full Trace Events 2 | . 1 1 . Feedback Events . | . . . . Feedback Blocked . | . . . . Robot Schematics Acquired . | . . . . Robots Built . | . . . . Authchips . | . . . . Time . | . . . . Total Robot Build Rating . | . . . . Part Schematics Acquired 1 | . . 1 . Parts Built . | . . . . Authchips . | . . . . Time . | . . . . Total Part Build Rating . | . . . . Parts Repaired . | . . . . Time . | . . . . Parts Recycled . | . . . . Recycled Matter . | . . . . Retrieved Matter . | . . . . Retrieved Components . | . . . . Parts Scanalyzed 1 | . . 1 . Part Schematics Acquired 1 | . . 1 . Parts Damaged 1 | . . 1 . Bothacking | -11 -10 -9 -8 ------------ Run | Yrd Mat Mat Mat Used RIF Installer . | . . . . Robots Hacked . | . . . . Non-combat . | . . . . Combat . | . . . . Robot Hacks Applied . | . . . . Relay Couplers Released . | . . . . Fabnet Peak Effective % . | . . . . Robots Rewired . | . . . . Allies Hacked . | . . . . Hacks Repelled . | . . . . Allies | -11 -10 -9 -8 -------- Run | Yrd Mat Mat Mat Total Allies . | . . . . Largest Group . | . . . . Highest-Rated Group . | . . . . Highest-Rated Ally . | . . . . Total Orders . | . . . . Ally Attacks . | . . . . Total Damage . | . . . . Kills . | . . . . Allies Corrupted . | . . . . Allies Melted . | . . . . Intel | -11 -10 -9 -8 ------- Run | Yrd Mat Mat Mat Robot Analysis Total . | . . . . Derelict Logs Recovered . | . . . . Drone Launches . | . . . . Drone Recoveries . | . . . . Exploration | -11 -10 -9 -8 ------------- Run | Yrd Mat Mat Mat Turns Passed 2028 | 164 1417 400 47 Spaces Moved 1497 | 126 963 325 83 Core 220 | 9 . 128 83 Treads . | . . . . Legs 1223 | 63 963 197 . Wheels 54 | 54 . . . Hover . | . . . . Flight . | . . . . Fastest Speed 50 | 50 120 50 50 Average Speed 109 | 102 120 97 50 Slowest Speed 150 | 120 120 150 50 Overloaded Moves . | . . . . Propulsion Burnouts . | . . . . Robots Hopped . | . . . . Cave-ins Triggered . | . . . . Exploration Rate (%) 27 | 5 76 24 6 Regions Visited 3 Branch Regions . Pre-discovered Areas . | . . . . Known Exits Taken . | . . . . Unknown Exits Taken 3 | 1 1 1 . Scrap Searched . | . . . . Spaces Dug . | . . . . Terrain Destroyed 266 | . 114 152 . Melee . | . . . . Projectile . | . . . . AOE 266 | . 114 152 . Terrain Rammed . | . . . . Walls Destroyed . | . . . . Machines Disabled . | . . . . Actions | -11 -10 -9 -8 --------- Run | Yrd Mat Mat Mat Total 1748 | 150 1152 357 89 Wait 119 | . 119 . . Move 1494 | 125 962 324 83 Hop . | . . . . Pick Up 13 | 2 7 . 4 Fast Attach 11 | 7 2 2 . Attach 5 | 2 3 . . Detach 5 | 2 3 . . Swap 8 | 1 7 . . Drop 12 | . 9 1 2 Fire 80 | 10 40 30 . Melee . | . . . . Ram 1 | 1 . . . Kick . | . . . . Crush . | . . . . Escape Stasis . | . . . . Rewire . | . . . . Trap . | . . . . Miscellaneous . | . . . . Route ------- -11/Scrapyard -10/Materials (discovered 5 exits: *Mat x3 / [*Min] / [Sub]) -9/Materials -8/Materials History --------- Turn | Location | Event 37 | -11/Scrapyard | Discovered new exit (range 15) 165 | -11/Scrapyard | Entered Materials 287 | -10/Materials | Discovered new exit (range 16) 307 | -10/Materials | Build established: Mutant 381 | -10/Materials | Discovered new exit (range 10) 525 | -10/Materials | Discovered new exit (range 15) 721 | -10/Materials | Discovered new exit (range 15) 1298 | -10/Materials | Discovered new exit (range 14) 1582 | -10/Materials | Entered another Materials area 1582 | -9/Materials | Evolved 2 slots: Power x1, Utility x1 1891 | -9/Materials | Lost 3 parts (1n1u1w) 1949 | -9/Materials | Core integrity fell below 50% 1958 | -9/Materials | Lost 4 parts (1n1u2w) 1974 | -9/Materials | Core integrity fell below 20% 1980 | -9/Materials | Discovered new exit (range 4) 1982 | -9/Materials | Entered another Materials area 1982 | -8/Materials | Evolved 2 slots: Propulsion x1, Weapon x1 2029 | -8/Materials | Self-destructed Last Messages --------------- accessible directly from each terminal are limited in order to mitigate the negative impacts of unauthorized access. Access is restricted by shielding the system behind multi-layered security, the first layer of which requires a dynamic key to clear without triggering defense mechanisms. >>Access(Emergency) Found 1 emergency access door: (16,64) Map updated. Dropped Broken Rocket Launcher. Dropped Datajack. Acquired Imp. Datajack. Acquired Propulsion Shielding. Acquired Arm. Treads. Acquired Hardlight Generator. ALERT: Suspicious intruders detected, dispatching Cutter reinforcements to area. Hadron Collector disabled. Map ----- +----------------------------------------------------+ | ??????????????????????????????????????????? | | ??????????????????????????????????????????? | | ??????????????????????????????????????????? | | ??????????????????????????????????????????? | | ??????????????????????????????????????????? | | ??????????????????????????????????????????? | | ??????????????????????????????????????????? | | ??????????????????????????????????????????? | | ??????????????????????????????????????????? | | ??????????????????????????????????????????? | | ??????????????????????????????????????????? | | ??????????????????????????????????????????? | | ??????????????????????????????????????????? | | ??????????????????????????????????????????? | | ??????????????????????????????????????????? | | ??????????????????????????????????????????? | | ??????????????????????????????????????????? | | ??????????????????????????????????????????? | | ??????????????????????????????????????????? | | ??????????? ^????????????????????????????? | | ??????????? ????H???????????????????????? | | ??????????# ????????????????????????????? | | ??????????# ????????????????????????????? | | ??????????# ????????????????????????????? | | ??????????# ###############?????????????? | | ??????????# # @ #?????????????? | | ??????????# # ] """ #?????????????? | | ??????????# # !! """ #?????????????? | | ??????????+ g g !! * """ #?????????????? | | ??????????# l# [ "" #?????????????? | | ??????????# # #?????????????? | | ??????????# ##+############?????????????? | | ??????????# # ! #????????????????????? | | ??????????# # #????????????????????? | | ??????????# # """ #????????????????????? | | ??????????# + "R #????????????????????? | | ??????????# # """ #????????????????????? | | ??????????# # #????????????????????? | | ??????????# ########????????????????????? | | ??????????# # ! T #????????????????????? | | ??????????# # #????????????????????? | | ??????????# # / #????????????????????? | | ??????????# + ! ] #????????????????????? | | ??????????# # ! #????????????????????? | | ??????????# # !/ #????????????????????? | | ??????????# ########????????????????????? | | ??????????# #???????????????????????????? | | ??????????# #???????????????????????????? | | ??????????# #???????????????????????????? | | ??????????# #???????????????????????????? | +----------------------------------------------------+ Best States ------------- Heat Dissipation 31 Energy Generation 10 Energy Capacity 125 Matter Stores 300 Matter Capacity 300 Sight Range 18 Robot Scan Range 14 Terrain Scan Range 14 Terrain Scan Density 85 Evasion (%) 55 Item Schematics ----------------- Rocket Launcher | -9/Materials | Scanalyzed Robot Schematics ------------------ None Fabricated ------------ Nothing Alien Tech Used ----------------- None Achievements -------------- None Challenges ------------ None Game ------ Seed SlugExoskeletonInverter Manual? 0 Play Time 00:31:20 Cumulative 4.0 hours Start 2024.04.05 @ 19:25:13 End 2024.04.05 @ 19:56:43 Sessions 1 Manual Loads 0 Difficulty Rogue Special Mode None Game No. 8 Rogue 8 Adventurer 0 Explorer 0 Win Type - Total 0 Types 0/0/0/0/0/0/0/0/0 Lore% 2 Gallery% 10 Achievement% 11 Wizard Run 0 Options --------- Layout 1 ASCII 0 Keyboard 0 Movement Arrows Keybinds 0 Fullscreen 1 Font 24/Smallcaps Map View 50x35 Zoom Use 0% Tactical HUD 0 Map Filters NONE Filters NONE Steam 1 RUN: 2fced68e-af1e-4537-9f05-f723136a434a